Cogmind - Beta 17 *** ADVENTURER MODE // 2026.09.05 @ 17:09:54 Player: ChrisPBacon Result: Self-destructed Performance ------------- Evolutions (1) 500 Regions Visited (4) 800 Robots Destroyed (71) 355 Value Destroyed (1735) 1735 Prototype IDs (8) 160 Alien Tech Used (0) 0 Bonus (45) 45 TOTAL SCORE: 3595 Bonus ------- Follower Combat Kills 228 Friendly Fire -183 Cogmind --------- Core Integrity 56/400 Matter 300/300 Energy 280/280 System Corruption 0% Temperature Cool (0) Movement Walking (112) Location -9/Recycling Parts ------- > --- POWER (1) -------- Heavy Ion Engine > --- PROPULSION (2) --- Aluminum Leg FC-Aluminum Exoskeleton > --- UTILITY (4) ------ Scrap Engine Small Storage Unit > --- WEAPON (2) ------- Rapid Thermic Pulse Construct/G Maul > --- INVENTORY (8) ---- Improved Flight Unit Improved Flight Unit Improved Flight Unit Improved Flight Unit Improved Flight Unit Structural Scanner Sensor Array Advanced Beam Cannon Peak State ------------ > --- POWER ------------ Heavy Ion Engine > --- PROPULSION ------- Aluminum Leg Overtuned Titanium Leg > --- UTILITY ---------- Scrap Engine Small Storage Unit Signal Interpreter > --- WEAPON ----------- Cooled Plasma Cannon Maul > --- INVENTORY -------- Improved Flight Unit Improved Flight Unit Improved Flight Unit Improved Flight Unit Improved Flight Unit Structural Scanner Sensor Array Advanced Beam Cannon [Rating: 37] Favorites ----------- Power Light Ion Engine Engine Light Ion Engine Propulsion Light Treads Treads Light Treads Leg Aluminum Leg Flight Unit Improved Flight Unit Utility Small Storage Unit Device Heat Sink Storage Small Storage Unit Processor Signal Interpreter Protection Hardened Light Armor Plating Weapon Medium Laser Energy Gun Medium Laser Energy Cannon Advanced Beam Cannon Ballistic Gun Light Assault Rifle Impact Weapon Maul Slashing Weapon Mining Claw Build | -11 -10 -9 -9 -9 ------- Run | Yrd Mat Mat Sto Rec Slots Evolved 2 | . . 2 . . Power . | . . . . . Propulsion . | . . . . . Utility 2 | . . 2 . . Weapon . | . . . . . Parts Attached 56 | 7 7 22 14 6 Power 7 | 1 2 2 2 . Engine 7 | 1 2 2 2 . Core . | . . . . . Reactor . | . . . . . Propulsion 16 | 2 1 5 4 4 Treads 11 | 2 1 4 4 . Leg 4 | . . . . 4 Wheel . | . . . . . Hover . | . . . . . Flight 1 | . . 1 . . Utility 17 | 2 1 9 3 2 Device 5 | 1 . 2 1 1 Storage 2 | 1 . 1 . . Processor 2 | . . 2 . . Hackware . | . . . . . Protection 8 | . 1 4 2 1 Artifact . | . . . . . Weapon 16 | 2 3 6 5 . Energy Gun 7 | 1 2 4 . . Energy Cannon 3 | . . . 3 . Ballistic Gun 4 | 1 . 2 1 . Ballistic Cannon . | . . . . . Launcher . | . . . . . Special Weapon . | . . . . . Impact Weapon 1 | . . . 1 . Slashing Weapon 1 | . 1 . . . Piercing Weapon . | . . . . . Special Melee Weapon . | . . . . . Unidentified Prototypes 6 | . . 1 4 1 Parts Lost 7 | . . 3 . 4 Power . | . . . . . Propulsion 2 | . . . . 2 Utility 4 | . . 2 . 2 Weapon 1 | . . 1 . . Highest Loss Streak 3 | . . 1 . 3 To Critical Strikes . | . . . . . Average Backups 7 | 3 7 7 8 8 Power . | . 1 1 . . Propulsion 4 | 1 4 4 4 5 Utility . | . . . 1 2 Weapon 1 | . 2 1 1 1 Tool/Special . | . . . . . Unused Backups 16 | . 2 5 3 6 Power 1 | . . . 1 . Propulsion 10 | . 1 5 . 4 Utility 2 | . . . . 2 Weapon 3 | . 1 . 2 . Tool/Special . | . . . . . Average Slot Usage (%) 97 | . 100 98 99 94 Engine 11 | . 14 11 11 11 Treads 21 | . 28 21 22 16 Leg 1 | . . . . 3 Device 9 | . 3 9 11 9 Storage 11 | . 14 11 11 11 Processor 8 | . . 10 11 9 Protection 10 | . 10 11 11 9 Energy Gun 10 | . 25 15 3 1 Energy Cannon 8 | . . . 17 17 Ballistic Gun 2 | . 1 6 . . Peak Build Rating 37 | 9 10 14 21 37 Average Rating 14 | 8 8 11 17 23 On Entrance 9 | . 9 8 11 21 Avg Prop Armor Cover (%) 11 | . . . . 11 Naked Turns . | . . . . . Heaviest Build 31 | 12 17 22 31 31 Greatest Support 43 | 40 40 43 43 43 Greatest Overweight (x) 8 | . . . . 8 Average Overweight (x) . | . . . . . Largest Inventory Capacity 8 | 8 8 8 8 8 Average Capacity 7 | 7 8 8 8 8 Most Carried 8 | 4 8 8 8 8 Average Carried 7 | 3 7 7 7 8 Final Capacity 8 | 8 8 8 8 8 Final Carried 8 | 4 8 8 8 8 Scrap Engine Consumption 10 | . . . . 10 Constructs Created 2 | . . . . 2 Constructs Modified 1 | . . . . 1 Class Distribution -------------------- 69% | Mutant 25% | Commander-Mutant 3% | Scavenger-Mutant Dominant Class ---------------- Mutant | -10/Materials Mutant | -9/Materials Commander-Mutant | -9/Storage Commander-Mutant | -9/Recycling Resources | -11 -10 -9 -9 -9 ----------- Run | Yrd Mat Mat Sto Rec Matter Collected 1089 | 141 219 352 120 257 Remotely . | . . . . . Salvage Created 2601 | 29 385 1111 648 428 Parts 165 | 5 22 81 29 28 Haulers Intercepted 7 | . 1 3 3 . Recyclers Shooed . | . . . . . Parts Field Recycled . | . . . . . Retrieved Matter . | . . . . . Parts Self-Destructed . | . . . . . Prevented . | . . . . . Parts Restored . | . . . . . Kills | -11 -10 -9 -9 -9 ------- Run | Yrd Mat Mat Sto Rec Combat Hostiles Destroyed 52 | . 8 29 10 5 Melee 1 | . . . . 1 Guns 40 | . 8 27 5 . Cannons 8 | . . . 4 4 AOE 2 | . . 2 . . Classes Destroyed 12 | 1 4 5 . 2 Worker 1 | . . 1 . . Builder 4 | . . 3 . 1 Tunneler 3 | 2 . 1 . . Hauler 7 | . 1 3 3 . Operator 2 | . . 2 . . Watcher 2 | . 1 1 . . Swarmer 15 | . 1 14 . . Grunt 22 | . 7 10 5 . Duelist 1 | . . 1 . . Sentry 11 | . . 4 5 2 Scientist 1 | . . . . 1 Scrapper 2 | . . . . 2 Best Kill Streak 6 | 1 3 6 3 2 Combat Bots Only 6 | . 3 6 2 2 Max Kills in Single Turn 3 | 1 1 3 1 1 Gunslinging . | . . . . . Exploded 2 | . . 2 . . Melee 1 | . . . . 1 Uniques/NPCs Destroyed 1 | . . . . 1 KN-7UR (-9/Recycling) Combat | -11 -10 -9 -9 -9 -------- Run | Yrd Mat Mat Sto Rec Hostile Shots Fired 305 | 4 34 131 43 93 Missed 60 | . 8 33 12 7 Hits 245 | 4 26 98 31 86 Melee 3 | . . 3 . . Projectile 242 | 4 26 95 31 86 AOE 4 | 4 . . . . Critical Strikes 4 | . . 2 1 1 Damage Taken 2741 | 141 273 980 299 1048 Core 407 | 10 53 102 40 202 Absorbed by Shields . | . . . . . Redirected to Shielding 54 | . . . . 54 Ignored by Resistances 799 | 37 81 294 92 295 Regen/Repaired (Parts) 69 | . . 69 . . Core Remaining (%) 85 | 96 74 . . . Volleys Fired 211 | 12 28 109 41 21 Largest 2 | 2 2 2 2 2 Hottest 136 | 70 115 105 136 105 Shots Fired 413 | 24 56 217 82 34 Gun 345 | 24 56 217 44 4 Cannon 68 | . . . 38 30 Launcher . | . . . . . Special . | . . . . . Kinetic 64 | 12 8 42 2 . Thermal 338 | 12 48 164 80 34 Explosive . | . . . . . Electromagnetic 11 | . . 11 . . Robot Hit Streak 20 | 6 15 20 17 5 Robot Miss Streak 3 | 1 1 3 1 2 Penetration Max . | . . . . . Secondary Targets 7 | . . 7 . . Max Gunslinging Chain 1 | . . 1 . . Shots Hit Robots 314 | 15 44 169 56 30 Core Hits 115 | 4 20 64 17 10 Critical Kills . | . . . . . Critical Parts Destroyed 1 | . . . . 1 Critical Strikes 10 | 2 . 4 3 1 Burn 9 | 2 . 4 3 . Smash 1 | . . . . 1 Melee Attacks 12 | . 2 . 2 8 Impact 10 | . . . 2 8 Slashing 2 | . 2 . . . Piercing . | . . . . . Sneak Attacks . | . . . . . Combat Hostiles . | . . . . . Follow-up Attacks . | . . . . . Damage Inflicted 4568 | 154 540 2170 879 825 Guns 3234 | 154 540 2019 476 45 Cannons 894 | . . . 367 527 Explosions 149 | . . 149 . . Melee 275 | . . . 36 239 Ramming 16 | . . 2 . 14 Kinetic 436 | 66 47 291 32 . Thermal 3642 | 88 493 1678 811 572 Explosive 43 | . . 43 . . Electromagnetic 156 | . . 156 . . Impact 275 | . . . 36 239 Slashing . | . . . . . Piercing . | . . . . . Highest Corruption . | . . . . . Average Corruption . | . . . . . Corruption Purged . | . . . . . Corruption Blocked . | . . . . . Overload Shots 1 | . . . . 1 Overflow Damage 80 | . . 26 7 47 Projectiles 1 | . . . 1 . Explosions 26 | . . 26 . . Melee 53 | . . . 6 47 Knockbacks 4 | . . . . 4 Impact 3 | . . . . 3 Kinetic . | . . . . . Secondary 1 | . . . . 1 Self-Inflicted Damage 156 | . . 156 . . Shots 3 | . . 3 . . Rammed 4 | . . 1 . 3 Targets Rammed 4 | . . 1 . 3 Kicked . | . . . . . Crushed . | . . . . . Highest Temperature 540 | 100 336 428 288 540 Average Temperature 104 | 42 99 115 55 185 Received Heat Transfer 1417 | . 198 315 192 712 Effects 11 | . . 4 . 7 Shutdowns 2 | . . 1 . 1 Energy Bleed 2 | . . 1 . 1 Interference 1 | . . 1 . . Matter Decay 4 | . . 1 . 3 Damage (minor) 1 | . . . . 1 Damage (core) 1 | . . . . 1 Siege Activations . | . . . . . Martial Activations . | . . . . . Shielding Activations . | . . . . . Robots Disrupted . | . . . . . Combat Hostiles . | . . . . . Robots Corrupted 1 | . . . 1 . Combat Hostiles 1 | . . . 1 . Parts Fried 3 | . . . 2 1 Impact Corruptions 2 | . . . 1 1 Robots Melted 1 | . . . 1 . Combat Hostiles . | . . . . . Parts Melted 8 | . . 2 6 . Heat Transferred 9247 | 407 1189 4381 2183 1087 Parts Sabotaged . | . . . . . Parts Stolen . | . . . . . Parts Stripped . | . . . . . Power Chain Reactions 1 | . . 1 . . Alert | -11 -10 -9 -9 -9 ------- Run | Yrd Mat Mat Sto Rec Maximum Alert Level 1 | . . 1 . . Low Security (%) 99 | 100 100 99 100 100 Level 1 . | . . . . . Level 2 . | . . . . . Level 3 . | . . . . . Level 4 . | . . . . . Level 5 . | . . . . . High Security . | . . . . . Max Security . | . . . . . Peak Influence 204 | 5 70 204 114 24 Initial 60 | . . . 60 . Average 18 | . 12 33 36 1 Influence Increases 1722 | 10 227 847 539 99 Destroy 0b10 Robot/C 1140 | . 160 580 340 60 Destroy 0b10 Robot/NC 100 | 10 10 55 20 5 Destroy Leader 238 | . 34 118 86 . Allied During Kill 47 | . . . 38 9 Successful Hack 57 | . 7 17 11 22 Disable Machine 45 | . . 18 27 . Destroy Structure 50 | . 1 44 2 3 Lose Combat Pursuer 45 | . 15 15 15 . Influence Decreases 1722 | 10 227 678 705 102 Entered New Map 112 | . . . 109 3 Time Decay 1515 | 10 227 624 556 98 Lost Part 31 | . . 30 . 1 Lost Ally 40 | . . . 40 . Purge Threat 24 | . . 24 . . Squads Dispatched 8 | . 2 2 4 . Investigation 3 | . 2 . 1 . Extermination . | . . . . . Reinforcement 2 | . . 2 . . Assault . | . . . . . Garrison 3 | . . . 3 . Intercept . | . . . . . Searches Triggered . | . . . . . Construction Impeded . | . . . . . Haulers Reinforced . | . . . . . Active Scanning Responses . | . . . . . Cargo Convoy Interrupts . | . . . . . Stealth | -11 -10 -9 -9 -9 --------- Run | Yrd Mat Mat Sto Rec Distress Signals 12 | . 2 7 3 . Communications Jammed . | . . . . . Distress Signals . | . . . . . Times Spotted 96 | 3 15 48 22 8 Peak Tracking Total 7 | 2 3 7 5 2 Tactical Retreats 4 | . 1 1 1 1 Traps | -11 -10 -9 -9 -9 ------- Run | Yrd Mat Mat Sto Rec Traps Triggered 2 | . 1 . 1 . Indirectly . | . . . . . Trap Hack Attempts . | . . . . . Triggered . | . . . . . Disarmed . | . . . . . Reprogrammed . | . . . . . Reused . | . . . . . Traps Extracted . | . . . . . Installed . | . . . . . Triggered . | . . . . . Machines | -11 -10 -9 -9 -9 ---------- Run | Yrd Mat Mat Sto Rec Machines Disabled 5 | . . 2 3 . Max in Single Turn 2 | . . 2 1 . Machines Repaired . | . . . . . Machines Dismantled . | . . . . . Machines Sabotaged . | . . . . . Overloaded Fab Kills . | . . . . . Hacking | -11 -10 -9 -9 -9 --------- Run | Yrd Mat Mat Sto Rec Machines Accessed 34 | . 8 9 10 7 Terminals 31 | . 7 8 10 6 Fabricators . | . . . . . Repair Stations 1 | . . 1 . . Recycling Units 1 | . 1 . . . Scanalyzers . | . . . . . Garrison Access . | . . . . . Total Hacks 90 | . 26 28 20 16 Successful 60 | . 18 16 16 10 Failed 30 | . 8 12 4 6 Catastrophic 1 | . . . . 1 Database Lockouts . | . . . . . Manual 64 | . 17 20 14 13 Terminals 84 | . 25 25 20 14 Fabricators . | . . . . . Repair Stations 3 | . . 3 . . Recycling Units 1 | . 1 . . . Scanalyzers . | . . . . . Garrison Access . | . . . . . Terminal Hacks 23 | . 8 6 6 3 Record 1 | . 1 . . . Part Schematic 1 | . . 1 . . Open Door 3 | . . . 3 . Branch Access Points 2 | . 1 1 . . Emergency Access Points 1 | . . 1 . . Terminal Index 2 | . 1 1 . . Recycling Unit Index 1 | . . . 1 . Alert Level 1 | . . . 1 . Unreport Threat 1 | . . 1 . . Locate Traps 1 | . 1 . . . Recall Investigation 1 | . . . 1 . Hauler Manifests 1 | . . 1 . . Registered Components 1 | . . . . 1 Zone Layout 4 | . 4 . . . Release Object 2 | . . . . 2 Fabricator Hacks . | . . . . . Repair Station Hacks 2 | . . 2 . . Scan Component 1 | . . 1 . . Repair 1 | . . 1 . . Recycling Unit Hacks 1 | . 1 . . . Retrieve Components 1 | . 1 . . . Scanalyzer . | . . . . . Garrison Access Hacks . | . . . . . Unauthorized Hacks 34 | . 9 8 10 7 Terminals 34 | . 9 8 10 7 Botnet 11 | . 3 3 3 2 Skim 23 | . 6 5 7 5 Fabricators . | . . . . . Repair Stations . | . . . . . Recycling Units . | . . . . . Scanalyzers . | . . . . . Garrison Access . | . . . . . Data Cores Recovered 2 | . . 1 1 . Used . | . . . . . Hacking Detections 25 | . 6 8 6 5 Full Trace Events 3 | . 1 1 1 . Feedback Events . | . . . . . Feedback Blocked . | . . . . . Robot Schematics Acquired . | . . . . . Robots Built . | . . . . . Authchips . | . . . . . Time . | . . . . . Total Robot Build Rating . | . . . . . Part Schematics Acquired 1 | . . 1 . . Parts Built . | . . . . . Authchips . | . . . . . Time . | . . . . . Total Part Build Rating . | . . . . . Part Studies Acquired . | . . . . . Parts Repaired 1 | . . 1 . . Time 13 | . . 13 . . Parts Recycled . | . . . . . Recycled Matter . | . . . . . Retrieved Matter . | . . . . . Retrieved Components 10 | . 10 . . . Parts Scanalyzed . | . . . . . Part Schematics Acquired . | . . . . . Parts Damaged . | . . . . . Bothacking | -11 -10 -9 -9 -9 ------------ Run | Yrd Mat Mat Sto Rec Used RIF Installer . | . . . . . Robots Hacked . | . . . . . Non-combat . | . . . . . Combat . | . . . . . Robot Hacks Applied . | . . . . . Relay Couplers Released . | . . . . . Fabnet Peak Effective % . | . . . . . Robots Rewired . | . . . . . Allies Hacked . | . . . . . Hacks Repelled . | . . . . . Allies | -11 -10 -9 -9 -9 -------- Run | Yrd Mat Mat Sto Rec Total Allies 10 | . . . 10 . Largest Group 10 | . . . 10 7 Highest-Rated Group 88 | . . . 88 64 Highest-Rated Ally 16 | . . . 16 16 Total Orders . | . . . . . Ally Attacks 76 | . . . 54 22 Total Damage 525 | . . . 344 181 Kills 11 | . . . 9 2 Allies Corrupted . | . . . . . Allies Melted 1 | . . . . 1 Intel | -11 -10 -9 -9 -9 ------- Run | Yrd Mat Mat Sto Rec Active Infowar (turns) 1559 | 1273 286 . . . Terrain 1559 | 1273 286 . . . Robot Analysis Total . | . . . . . Derelict Logs Recovered . | . . . . . Drone Launches . | . . . . . Drone Recoveries . | . . . . . Exploration | -11 -10 -9 -9 -9 ------------- Run | Yrd Mat Mat Sto Rec Turns Passed 8074 | 1403 1076 2300 1481 1814 Spaces Moved 2637 | 66 496 816 525 734 Core 29 | 3 . . . 26 Treads 2455 | 63 496 816 525 555 Legs 153 | . . . . 153 Wheels . | . . . . . Hover . | . . . . . Flight . | . . . . . Fastest Speed 50 | 50 160 160 160 100 Average Speed 161 | 155 160 160 160 165 Slowest Speed 450 | 160 160 160 160 450 Overloaded Moves . | . . . . . Propulsion Burnouts . | . . . . . Robots Hopped . | . . . . . Potential Cave-ins . | . . . . . Cave-ins Triggered . | . . . . . Exploration Rate (%) 56 | 6 54 55 80 89 Regions Visited 4 Branch Regions 2 Pre-discovered Areas 9 | . 1 2 2 4 Known Exits Taken 2 | . . 1 1 . Unknown Exits Taken 2 | 1 1 . . . Scrap Searched . | . . . . . Spaces Dug 2 | . 1 . 1 . Terrain Destroyed 44 | . 1 38 1 4 Melee 2 | . 1 . 1 . Projectile 4 | . . . . 4 AOE 38 | . . 38 . . Terrain Rammed . | . . . . . Walls Destroyed . | . . . . . Machines Disabled . | . . . . . Actions | -11 -10 -9 -9 -9 --------- Run | Yrd Mat Mat Sto Rec Total 6034 | 1342 722 1605 1086 1279 Wait 3030 | 1254 177 619 480 500 Move 2633 | 65 495 815 524 734 Hop . | . . . . . Pick Up 23 | 4 6 9 4 . Fast Attach 39 | 7 2 17 7 6 Attach 1 | . . 1 . . Detach . | . . . . . Swap 23 | . 5 8 9 1 Drop 58 | . 7 26 19 6 Fire 211 | 12 28 109 41 21 Melee 12 | . 2 . 2 8 Ram 1 | . . . . 1 Kick . | . . . . . Crush 3 | . . 1 . 2 Escape Stasis . | . . . . . Rewire . | . . . . . Trap . | . . . . . Miscellaneous . | . . . . . Route ------- -11/Scrapyard -10/Materials (discovered 5 exits: *Mat x2 / *Min x2 / *Sub) -9/Materials (discovered 7 exits: *Mat x3 / *Min x2 / *Sto x2) -9/Storage (discovered 2 exits: *Mat / *Rec) -9/Recycling History --------- Turn | Location | Event 14 | -11/Scrapyard | Discovered new exit (range 14) 1400 | -11/Scrapyard | Assembled infested the area 1404 | -11/Scrapyard | Entered Materials 1405 | -10/Materials | Build established: Mutant 1466 | -10/Materials | Identified exit to Mines 1694 | -10/Materials | Discovered new exit (range 3) 1886 | -10/Materials | Discovered new exit (range 16) 1996 | -10/Materials | Discovered new exit (range 5) 2102 | -10/Materials | Loaded intel: 10 trap records 2152 | -10/Materials | Learned location of Recycling (-9) 2191 | -10/Materials | Learned 2 Mines zone layouts 2221 | -10/Materials | Learned Storage terminal intel 2242 | -10/Materials | Loaded intel: 32 non-interactive machine locations 2254 | -10/Materials | Identified exit to Subcaves 2275 | -10/Materials | Learned location of 2 exits from Mines 2351 | -10/Materials | Learned 2 Storage zone layouts 2480 | -10/Materials | Entered another Materials area 2480 | -9/Materials | Evolved 2 slots: Utility x2 2522 | -9/Materials | Repaired Lgt. Treads 2943 | -9/Materials | Discovered new exit (range 11) 2964 | -9/Materials | Identified exit to Materials 3247 | -9/Materials | Identified exit to Mines 3247 | -9/Materials | Identified exit to Storage 3631 | -9/Materials | Learned 4 Recycling zone layouts 3701 | -9/Materials | Loaded intel: 8 trap records 3852 | -9/Materials | Learned 2 Storage zone layouts 3881 | -9/Materials | Learned location of 1 exit from Storage 3902 | -9/Materials | Learned Storage emergency access door positions 3932 | -9/Materials | Learned location of 1 exit from Recycling 4780 | -9/Materials | Entered Storage 4782 | -9/Storage | Identified exit to Recycling 4784 | -9/Storage | Loaded intel: 14 terminal locations 5098 | -9/Storage | Used back door to open Recycling access 5106 | -9/Storage | Met 01-MTF 5557 | -9/Storage | Assisted by bots powering up and referring to "LRC-V3" 5630 | -9/Storage | Garrison activated, responded to threat 5766 | -9/Storage | Learned location of Mines (-9) 5862 | -9/Storage | Build established: Commander-Mutant 5897 | -9/Storage | Learned location of 1 exit from Storage 6039 | -9/Storage | Learned 4 Materials zone layouts 6100 | -9/Storage | Learned Storage emergency access door positions 6261 | -9/Storage | Entered Recycling 6261 | -9/Recycling | Accompanied by 8 allies (01-MTF) 6262 | -9/Recycling | Identified exit to Scraptown 6784 | -9/Recycling | Scanned before Scraplab entrance 7194 | -9/Recycling | Learned location of Zion (-6) 7234 | -9/Recycling | Learned 2 Storage zone layouts 7266 | -9/Recycling | Learned Materials emergency access door positions 7318 | -9/Recycling | Learned 8 Materials zone layouts 7579 | -9/Recycling | Angered Scraplab inhabitants 7605 | -9/Recycling | Core integrity fell below 50% 7610 | -9/Recycling | Destroyed KN-7UR 7631 | -9/Recycling | Lost 7 allies 7650 | -9/Recycling | Lost 3 parts (1n2u) 7666 | -9/Recycling | Core integrity fell below 20% 7780 | -9/Recycling | Found Prototype Device 7780 | -9/Recycling | Identified Scrap Engine 7886 | -9/Recycling | Build established: Mutant 8075 | -9/Recycling | Self-destructed Last Messages --------------- 07865_ Dropped Cld. Plasma Cannon. 07867_ Scrap Engine consumes Cld. Plasma Cannon. 07897_ Scrap Engine constructs Cycling Energy Plasma Construct/G. 07899_ 9M-3IB(c) destroyed. 07906_ Discarded Signal Interpreter. 07910_ Tech Extrapolator violently self-destructs. 07915_ Scrap Engine consumes Prototype Leg. 07925_ Dropped Aluminum Leg. 07936_ R-06 Scavenger collects Aluminum Leg. 07945_ Scrap Engine constructs FC-Aluminum Exoskeleton. 08013_ Scrap Engine modifies Cycling Energy Plasma Construct/G: Max Damage -9, Min Damage -3, Critical +3, Max Integrity -35, Mass -3 Renamed Rapid Thermic Pulse Construct/G. [A new version of Cogmind is available, see F1 News page.] Map ----- +----------------------------------------------------+ | ???#]] #?# #?????????? | | ???#]] #?# ########### | | ???### #?# | | ?????# ##### ########%#?# #????# | | ?????# #???# #??????# #?# #????# | | ?????# #???# #??????# #?# #????# | | ?????# #?###+########/#?# #????# | | ?????# #?# #?# #????###### | | ?????# #?# #?# ###???# ! | | ?????# #?# #?# =#???# | | ?????# #?# ### ==#???# ! | | ?????# #?# /% = #???# ! | | ?????#### #?# ### ###???# ! | | ????????# #?# ### %%#???# | | ????????# #?# = ##% %%#???#! | | ????????# #?# ### %#???# | | ????????# #?# ! #?# ###???#+### | | ????????# ### ! #?# #?????# #?? | | ????????# ## ! #?# #?????# #?? | | ????????# #########+######## ####### ### | | ?????####+######## # | | ?????# % % + # | | ?????# ! #### | | ?????# #??# #####+############# | | ?????# [ #### #??# ????????????# | | ?????#! ! ##/@ #??# "????????????# | | ?????# ??#// #??# ?????????????# | | ?????# | ?#// #??# ?????????????# | | ?????# ?### #??#??????????????# | | ?????# ! #??# #?????????????????# | | ?????#######+##?? ?????????????????# | | ????????????????? #????????????????# | | ???????????????? ?????????????####+# | | ???????????????? ##???????????# | | ???????????????## #????????????# """ | | ????????????????#######???????????????""" | | ???????????????????????????????????????"" | | ??????????????????????????????????????? | | ??????????????????????????????????????#### | | ?????????????????????????????????????????? | | ?????????????????????????????????????????? | | | | | | | | | | | | | | | | | | | +----------------------------------------------------+ Best States ------------- Heat Dissipation 48 Energy Generation 14 Energy Capacity 280 Matter Stores 300 Matter Capacity 300 Sight Range 16 Terrain Scan Range 16 Terrain Scan Density 85 Armor Coverage 300 Resistance: KI 20 Resistance: TH 20 Resistance: EX 20 Resistance: EM 20 Resistance: I 20 Resistance: S 20 Resistance: P 20 Weapon Shielding 66 Evasion (%) 55 Recoil Reduction 2 Offensive Hacking 10 Item Schematics ----------------- Plasma Cutter | -9/Materials | Hacked Robot Schematics ------------------ None Fabricated ------------ Nothing Repaired ---------- Lgt. Treads | 50% | -9/Materials Studied --------- None Alien Tech Used ----------------- None Achievements -------------- Curiosity Killed The Cat Frienemies \\IAMDERELICT Challenges ------------ None Game ------ Seed PiercingCloakStrikerail Manual? 0 Play Time 00:41:56 Cumulative 89.1 hours Start 2026.08.31 @ 22:23:31 End 2026.09.05 @ 17:09:54 Sessions 7 Manual Loads 0 Difficulty Adventurer Special Mode None Game No. 26 Rogue 0 Adventurer 26 Explorer 0 Win Type - Total 5 Types 3/0/0/0/0/0/0/2/0/0 Lore% 38 Gallery% 46 Achievement% 49 Wizard Run 0 Options --------- Layout 1 ASCII 0 Keyboard 0 Movement Mouse Keybinds 0 Fullscreen 1 Font 24/Smallcaps Map View 50x35 Zoom Use 0% Tactical HUD 1 Map Filters NONE Filters NONE Steam 1 RUN: 4cdb539f-b9a1-4aa7-aeb0-e9f392fa56aa